[Event "FIDE World Cadets U10 2022"]
[Site "Batumi"]
[Date "2022.09.16"]
[Round "1"]
[White "Bedyovkin, Nataniel Alexey"]
[Black "Mendes Aaron Reeve"]
[Result "0-1"]
[ECO "E18"]
[WhiteElo "1283"]
[BlackElo "1990"]
[Annotator "TA"]
[PlyCount "74"]
[EventDate "2022.09.16"]
[EventType "swiss"]
[EventCountry "GEO"]
[SourceTitle "playchess.com"]
[Source "ChessBase"]
[SourceQuality "1"]
[TimeControl "5400+30"]

{[%evp 13,73,5,23,0,0,-43,0,0,6,-16,-13,-152,-148,-161,-152,-158,-162,-168,-164,-255,-260,-318,-318,-318,-312,-351,-335,-335,-327,-366,-325,-402,-350,-359,-356,-499,-310,-316,-315,-309,-300,-414,-412,-514,-526,-518,-435,-442,-430,-819,-819,-818,-818,-805,-473,-1236,-1140,-1715,-1483,-1377,-889,-29999]} 1. Nf3 {[%emt 0:01:00]} Nf6 {[%emt 0:01:00]} 2. g3 {[%emt 0:00:30]} d5 {[%emt 0:00:30]} 3. Bg2 {[%emt 0:00:00]} e6 {[%emt 0:00:30]} 4. d4 {[%emt 0:00:00]} Be7 {[%emt 0:00:30]} 5. c4 {[%emt 0:00:30]} O-O {[%emt 0:00:30]} 6. O-O {[%emt 0:01:30]} b6 {[%emt 0:01:30]} 7. Nc3 {[%emt 0:02:30]} Bb7 {[%emt 0:01:30]} 8. Bg5 {[%emt 0:03:30] 8.cxd5 is a critical line. E18: Queen's Indian: Old Main Line (4 g3 Bb7 5 Bg2 Be7 6 0-0 0-0 7 Nc3).} dxc4 {[%emt 0:02:30] [#]} 9. Rc1 $146 {[%emt 0:04:30]} ({Predecessor:} 9. Ne5 Bxg2 10. Kxg2 a6 11. a4 Bb4 12. Ne4 Qd5 13. Bxf6 gxf6 14. Ng4 Qxe4+ 15. f3 Qg6 {0-1 (15) Winter,R-Dixon,H (1544) Wellington 2016}) 9... h6 {[%emt 0:02:30]} (9... a6 $15) 10. Bxf6 $11 {[%emt 0:03:30] The position is equal.} Bxf6 {[%emt 0:00:30]} 11. e3 {[%emt 0:00:30]} ({Don't play} 11. Ne5 Bxg2 12. Kxg2 c5 $17) 11... a6 {[%emt 0:01:30]} 12. Na4 {[%emt 0:04:30] White is now going downhill.} (12. a4 $11) 12... Nd7 $17 {[%emt 0:00:30][%cal Bb8d7,Bd7c5,Bc5d3][%mdl 32]} 13. Qe2 {[%emt 0:08:30]} b5 {[%emt 0:03:30]} 14. Nc3 {[%emt 0:00:30]} c5 {[%emt 0:00:00]} 15. Rfd1 {[%emt 0:01:30]} Qb6 {[%emt 0:01:00]} 16. dxc5 {[%emt 0:03:30]} (16. b3 {was called for.}) 16... Nxc5 $19 {[%emt 0:00:00]} 17. Nd4 {[%emt 0:03:30]} Bxg2 {[%emt 0:01:00]} 18. Kxg2 {[%emt 0:00:30]} Nd3 {[%emt 0:00:00]} 19. Rb1 {[%emt 0:03:30]} Bxd4 {[%emt 0:01:00]} 20. exd4 {[%emt 0:00:30]} Qxd4 {[%emt 0:00:30]} 21. Qf3 {[%emt 0:02:30]} Rad8 {[%emt 0:02:30]} 22. Kg1 {[%emt 0:02:30]} b4 {[%emt 0:03:30]} 23. Ne2 {[%emt 0:01:30]} Qe5 {[%emt 0:00:00]} 24. b3 {[%emt 0:05:30]} (24. Qe3 {was worth a try.} Qa5 25. a3) 24... Qd5 {[%emt 0:02:00]} 25. Qxd5 {[%emt 0:05:30]} exd5 {[%emt 0:00:30]} ({Inferior is} 25... Rxd5 26. bxc4 Rdd8 27. Rd2 $17) 26. Nd4 {[%emt 0:02:30]} Rfe8 {[%emt 0:02:30]} 27. Nc6 {[%emt 0:01:30]} Rc8 {[%emt 0:01:30]} 28. Na5 {[%emt 0:01:30]} Re2 {[%emt 0:00:30][%csl LRa2,LRf2]} 29. bxc4 {[%emt 0:01:30]} dxc4 {[%emt 0:00:30]} 30. Nxc4 {[%emt 0:01:30]} Nxf2 {[%emt 0:00:30]} ({Avoid the trap} 30... Rxc4 $2 31. Rxd3 Rxa2 32. Rd5 $19) 31. Rdc1 {[%emt 0:01:30]} (31. Rd2 $142 Rxd2 32. Nxd2) 31... Nd3 {[%emt 0:00:30]} 32. Rd1 {[%emt 0:01:30]} Rxc4 {[%emt 0:00:30]} 33. Rxd3 {[%emt 0:00:30]} Rcc2 {[%emt 0:00:30]} 34. h4 {[%emt 0:02:30]} (34. a3 $142 Rg2+ 35. Kf1) 34... Rxa2 {[%emt 0:00:30] [#] Hoping for ...a5.} 35. Rdb3 {[%emt 0:00:30]} a5 {[%emt 0:00:00]} 36. Kf1 {[%emt 0:02:30]} Rg2 {[%emt 0:00:00] ...Raf2+ is the strong threat.} 37. Re1 {[%emt 0:02:30]} Raf2# {[%emt 0:00:30] Weighted Error Value: White=1.03/Black=0.43} 0-1

[Event "FIDE World Cadets U10 2022"]
[Site "Batumi"]
[Date "2022.09.16"]
[Round "1"]
[White "Ritesh Maddukuri"]
[Black "Liu, Patrick"]
[Result "0-1"]
[ECO "A45"]
[WhiteElo "1272"]
[BlackElo "1961"]
[Annotator "TA"]
[PlyCount "88"]
[EventDate "2022.09.16"]
[EventType "swiss"]
[EventCountry "GEO"]
[SourceTitle "playchess.com"]
[Source "ChessBase"]
[SourceQuality "1"]
[TimeControl "5400+30"]

{[%evp 9,88,14,5,6,2,22,62,56,58,59,56,65,62,60,64,56,93,64,99,83,83,22,52,-50,-42,-42,-42,-68,-11,-20,-4,-81,-10,-73,-95,-76,-72,-161,-21,-12,-13,-8,0,-21,-16,-68,-50,-62,-62,-62,-63,-75,-75,-75,-75,-79,-78,-91,-97,-216,-218,-202,-181,-231,-224,-232,-177,-230,-230,-243,-195,-418,-415,-368,-248,-404,-414,-386,-331,-325,-231]} 1. d4 {[%emt 0:01:00]} Nf6 {[%emt 0:01:00]} 2. Bg5 {[%emt 0:00:30]} c5 {[%emt 0:00:30]} 3. d5 {[%emt 0:00:30]} d6 {[%emt 0:00:00]} 4. c4 {[%emt 0:00:30]} h6 {[%emt 0:00:00]} 5. Bxf6 {[%emt 0:00:30]} exf6 {[%emt 0:00:30]} 6. Nc3 {[%emt 0:03:30] A45: Trompowsky Attack.} g6 {[%emt 0:00:30] [#]} 7. e4 $146 {[%emt 0:01:30]} ({Predecessor:} 7. e3 Bg7 8. Bd3 Nd7 9. f4 f5 10. Qf3 O-O 11. Nge2 a6 12. O-O Nf6 13. Rab1 {0-1 (50) Motola,J (2229)-Castellanos Rodriguez,R (2511) Forni di Sopra 2019}) 7... Bg7 {[%emt 0:00:00]} 8. Bd3 $1 {[%emt 0:01:30] White is slightly better.} O-O {[%emt 0:01:00]} 9. Nge2 {[%emt 0:03:30]} Nd7 {[%emt 0:02:30]} 10. f4 {[%emt 0:02:30] Prevents Ne5.} Re8 {[%emt 0:05:30][%cal Of6f5]} 11. O-O {[%emt 0:03:30]} Nf8 {[%emt 0:01:30]} 12. Qd2 {[%emt 0:12:30]} Bd7 {[%emt 0:01:30]} 13. Rae1 {[%emt 0:08:30]} Qc8 {[%emt 0:01:30]} 14. Qc2 {[%emt 0:06:30]} a6 {[%emt 0:07:30]} 15. a3 {[%emt 0:04:30]} (15. Nd1 $16) 15... b5 {[%emt 0:01:30]} 16. Nb1 {[%emt 0:30:40]} ({Don't blunder} 16. cxb5 $2 c4 17. f5 Bxb5 18. Nxb5 axb5 $19) (16. f5 $14) 16... bxc4 {[%emt 0:03:30]} 17. Bxc4 {[%emt 0:00:55]} f5 {[%emt 0:00:30]} 18. Nd2 {[%emt 0:03:32]} Qc7 {[%emt 0:02:30]} (18... fxe4 $15 19. Nxe4 Qc7) 19. Ng3 {[%emt 0:01:30][%cal Re4f5]} fxe4 {[%emt 0:00:30] [#] White must now prevent ...f5.} 20. Ndxe4 {[%emt 0:00:47]} (20. f5 $1 $11) 20... Rab8 {[%emt 0:01:30]} (20... f5 $17 21. Nc3 Qa5) 21. b3 {[%emt 0:01:43]} (21. f5 $1 $11 {remains equal.}) 21... f5 $17 {[%emt 0:02:30]} 22. Nd2 {[%emt 0:01:01]} Qa5 {[%emt 0:00:30]} 23. a4 {[%emt 0:00:44] [#]} (23. Rxe8 $17 {was necessary.} Rxe8 24. Be2) 23... Bc3 {[%emt 0:03:30]} (23... Bxa4 $1 $19 {[%mdl 512] ...Bb5 is the strong threat.} 24. Re2 (24. bxa4 $2 Rxe1 25. Rxe1 Rb2 $19) 24... Bb5) 24. Rxe8 $11 {[%emt 0:01:57]} Rxe8 {[%emt 0:00:30]} 25. Nf3 {[%emt 0:00:03][%cal Oc4a6]} Bg7 {[%emt 0:01:30]} 26. Qd3 {[%emt 0:01:21]} Bc8 $36 {[%emt 0:00:00][%mdl 2048] Black fights for an advantage.} 27. Kf2 {[%emt 0:00:51]} (27. Kh1 $11) 27... Nd7 {[%emt 0:01:00]} 28. Re1 {[%emt 0:01:02]} Rxe1 {[%emt 0:01:30]} 29. Nxe1 {[%emt 0:00:01]} Qc3 {[%emt 0:04:30]} 30. Qxc3 {[%emt 0:01:55]} Bxc3 {[%emt 0:00:30]} 31. Nc2 {[%emt 0:00:44]} Nb6 {[%emt 0:01:30]} 32. Ne2 {[%emt 0:00:28]} Bd2 {[%emt 0:00:30]} 33. Ne3 {[%emt 0:01:03]} Bb7 {[%emt 0:03:30] Black is more active.} 34. h3 {[%emt 0:00:59]} (34. Nf1 $17 Bb4 35. Ne3) 34... Bxe3+ $19 {[%emt 0:04:30]} 35. Kxe3 {[%emt 0:00:17]} Nxd5+ {[%emt 0:00:00][%mdl 4096] Endgame KBN-KBN} ({Weaker is} 35... Bxd5 36. Bxa6 Bxb3 37. a5 Nc4+ 38. Bxc4+ Bxc4 39. g3 $17) 36. Kf2 {[%emt 0:00:26]} (36. Kd2 {might work better.} Kg7 37. g3) 36... Kg7 {[%emt 0:00:00]} 37. g3 {[%emt 0:01:11]} Nb4 {[%emt 0:00:30]} 38. Nc1 {[%emt 0:01:20]} (38. Nc3 {was called for.}) 38... Be4 {[%emt 0:00:30]} 39. Be2 {[%emt 0:02:13]} d5 {[%emt 0:00:30][%cal Bd6d5,Bd5d4][%mdl 32]} 40. Bf3 $2 {[%emt 0:00:47]} (40. a5) 40... d4 {[%emt 0:00:30]} 41. Bd1 {[%emt 0:00:45]} Kf6 {[%emt 0:00:30] aiming for ...g5.} 42. Ke2 $2 {[%emt 0:00:24]} (42. Ke1 {is a better defense.}) 42... Nd5 {[%emt 0:01:30]} 43. Kd2 {[%emt 0:00:53]} Nc3 {[%emt 0:00:30]} 44. Bc2 {[%emt 0:00:45]} Ke6 {[%emt 0:01:30] Weighted Error Value: White=0.33/Black=0.21 (precise)} 0-1

[Event "FIDE World Cadets U10 2022"]
[Site "Batumi"]
[Date "2022.09.16"]
[Round "1"]
[White "Amanov, Asad"]
[Black "Abdsattar, Alisher"]
[Result "0-1"]
[ECO "B01"]
[WhiteElo "1264"]
[BlackElo "1934"]
[Annotator "TA"]
[PlyCount "108"]
[EventDate "2022.09.16"]
[EventType "swiss"]
[EventCountry "GEO"]
[SourceTitle "playchess.com"]
[Source "ChessBase"]
[SourceQuality "1"]
[TimeControl "5400+30"]

{[%evp 9,107,40,57,40,43,39,41,39,41,18,30,0,0,0,10,-4,0,-20,-13,-20,-12,-11,-9,-12,-18,-35,-6,-24,-25,-37,-47,-95,-97,-100,-108,-98,-105,-109,-94,-226,-222,-229,-226,-228,-223,-223,-229,-236,-237,-270,-220,-223,-217,-231,-231,-232,-241,-239,-227,-254,-277,-270,-275,-265,-247,-278,-279,-331,-328,-490,-407,-399,-337,-330,-302,-484,-477,-446,-366,-694,-676,-2103,-24,-33,-35,-608,-583,-623,-575,-841,-766,-2902,-2736,-2197,-2122,-29997,-29998,-29998,-29999,-29999]} 1. e4 {[%emt 0:01:00]} d5 {[%emt 0:01:00]} 2. exd5 {[%emt 0:00:30]} Qxd5 {[%emt 0:00:30]} 3. Nc3 {[%emt 0:00:30]} Qd6 {[%emt 0:00:30]} 4. Nf3 {[%emt 0:00:00]} c6 {[%emt 0:00:30]} 5. d4 {[%emt 0:00:00]} Bg4 {[%emt 0:00:30]} 6. Be2 {[%emt 0:00:30] B01: Scandinavian Defence.} Nf6 {[%emt 0:00:30] Inhibits Ne4.} 7. O-O {[%emt 0:00:30]} Nbd7 {[%emt 0:00:00]} 8. Re1 {[%emt 0:02:30] White is slightly better.} e6 {[%emt 0:02:00]} 9. Be3 {[%emt 0:01:30]} Qc7 {[%emt 0:00:30] [#]} 10. Ng5 $146 {[%emt 0:00:30]} ({Predecessor:} 10. a3 Bd6 11. h3 Bh5 12. Ng5 Bxe2 13. Rxe2 O-O 14. Nge4 Be7 15. Bg5 Rfe8 16. Nxf6+ Nxf6 {0-1 (34) Romero,R (1601)-Blanco,R (1470) Montevideo 2020}) 10... Bxe2 {[%emt 0:05:30]} 11. Qxe2 {[%emt 0:01:30][%cal Od4d5]} Be7 {[%emt 0:00:30]} 12. Bd2 {[%emt 0:03:30][%cal Og5f7]} O-O {[%emt 0:01:30]} 13. Qf3 {[%emt 0:04:30]} Qb6 {[%emt 0:07:30]} 14. Qd3 {[%emt 0:02:30]} Rfd8 {[%emt 0:01:30]} 15. Rab1 {[%emt 0:03:30]} h6 {[%emt 0:02:30]} 16. Nf3 {[%emt 0:02:30]} Rac8 {[%emt 0:11:30]} 17. Be3 {[%emt 0:00:00][%cal Od4d5]} Nd5 {[%emt 0:01:30]} 18. Ne4 {[%emt 0:03:00]} Nxe3 {[%emt 0:00:30]} 19. Rxe3 {[%emt 0:00:30]} c5 {[%emt 0:05:30]} 20. d5 {[%emt 0:01:30]} (20. c3 $15 {was preferrable.}) 20... Nf6 $17 {[%emt 0:00:30]} 21. c4 {[%emt 0:01:30]} exd5 {[%emt 0:00:00]} 22. Nc3 {[%emt 0:03:30][%csl LRd5,LRe7]} dxc4 {[%emt 0:01:00]} 23. Qxc4 {[%emt 0:00:30]} Bd6 {[%emt 0:00:30]} 24. Nh4 {[%emt 0:03:30] [#]} (24. b3 $17) 24... Bxh2+ $1 $19 {[%emt 0:05:30][%mdl 512]} 25. Kxh2 {[%emt 0:04:30] Strongly threatening Qe2.} Rd4 {[%emt 0:00:30]} 26. Qe2 {[%emt 0:04:30] Threatens to win with Nf5.} Rxh4+ {[%emt 0:00:30]} 27. Kg1 {[%emt 0:00:30]} Rd8 {[%emt 0:01:30]} 28. Re1 {[%emt 0:02:30]} Rhd4 {[%emt 0:00:30]} 29. Re7 {[%emt 0:02:30]} R8d7 {[%emt 0:04:30]} 30. Rxd7 {[%emt 0:07:30]} Rxd7 {[%emt 0:00:30]} 31. Qc2 {[%emt 0:00:30]} Qc6 {[%emt 0:01:30]} 32. Ne4 {[%emt 0:08:30]} Nxe4 {[%emt 0:11:30]} 33. Rxe4 {[%emt 0:00:30][%cal Re4e8][%mdl 4096] Endgame [#] KQR-KQR} Rd1+ $3 {[%emt 0:03:30][%mdl 512]} 34. Kh2 {[%emt 0:00:30]} (34. Qxd1 Qxe4) 34... Qd6+ {[%emt 0:00:30]} 35. g3 {[%emt 0:00:30]} g6 {[%emt 0:01:30]} 36. Qc3 {[%emt 0:00:30] aiming for Re8+.} Rd4 {[%emt 0:08:30]} 37. Re8+ {[%emt 0:00:30]} Kg7 {[%emt 0:01:30]} 38. Rc8 {[%emt 0:02:30]} b6 {[%emt 0:00:30]} 39. a4 {[%emt 0:01:30]} (39. b3 $142) 39... Qd7 {[%emt 0:03:13]} 40. Ra8 {[%emt 0:02:30]} Qxa4 {[%emt 0:00:52] Hoping for ...Qd7.} 41. Qe3 {[%emt 0:02:30] Intending Qe5+ and mate.} Re4 {[%emt 0:02:42] Inhibits Qe5+.} 42. Qf3 {[%emt 0:02:30]} (42. Qc3+ Rd4 43. Qe1) 42... Re7 {[%emt 0:03:00]} 43. Rd8 {[%emt 0:00:30]} Qb4 {[%emt 0:01:07]} 44. Qa8 $2 {[%emt 0:02:30]} (44. b3) 44... Qxb2 {[%emt 0:09:53] And now ...Re2 would win.} 45. Rg8+ {[%emt 0:01:30]} Kf6 $2 {[%emt 0:00:29]} ({Black should play} 45... Kh7 $19 46. Rf8 Qxf2+ 47. Qg2 Qf5) 46. Qf3+ $11 {[%emt 0:01:30]} Ke6 {[%emt 0:00:09]} 47. Qg4+ $2 {[%emt 0:00:30][%mdl 8192]} (47. Rd8 $15) 47... Kd6 {[%emt 0:01:36]} 48. Rd8+ {[%emt 0:01:30]} Kc6 {[%emt 0:00:19]} 49. Qa4+ {[%emt 0:00:30]} Kc7 {[%emt 0:00:05]} ({Inferior is} 49... Kb7 50. Rd7+ Rxd7 51. Qxd7+ Kb8 52. Qd8+ Kb7 53. Qd7+ Kb8 54. Qd8+ Kb7 55. Qd7+ $11) 50. Rd1 {[%emt 0:01:30]} Qxf2+ {[%emt 0:00:06]} 51. Kh3 {[%emt 0:01:37]} Qf5+ {[%emt 0:00:08]} 52. Kg2 {[%emt 0:00:42]} Re2+ {[%emt 0:00:30] Black mates.} 53. Kg1 {[%emt 0:00:11]} Qf2+ {[%emt 0:00:08]} 54. Kh1 {[%emt 0:00:30]} Qg2# {[%emt 0:00:00] Weighted Error Value: White=0.79/Black=0.20 (precise)} 0-1

[Event "FIDE World Cadets U10 2022"]
[Site "Batumi"]
[Date "2022.09.16"]
[Round "1"]
[White "Novodvorskiy, Dmitriy Al"]
[Black "Vivaan Vishal Shah"]
[Result "1/2-1/2"]
[ECO "D03"]
[WhiteElo "1244"]
[BlackElo "1899"]
[Annotator "NA COMBH"]
[PlyCount "85"]
[EventDate "2022.09.16"]
[EventType "swiss"]
[EventCountry "GEO"]
[SourceTitle "playchess.com"]
[Source "ChessBase"]
[SourceQuality "1"]
[TimeControl "5400+30"]

1. d4 {[%emt 0:01:00]} Nf6 {[%emt 0:01:00]} 2. Nf3 {[%emt 0:00:30]} g6 {[%emt 0:00:30]} 3. Bg5 {[%emt 0:00:30]} Bg7 {[%emt 0:00:30]} 4. Nbd2 {[%emt 0:00:00]} d5 {[%emt 0:00:00]} 5. e3 {[%emt 0:00:00]} h6 {[%emt 0:00:00]} 6. Bh4 {[%emt 0:00:30]} O-O {[%emt 0:00:30]} 7. Bd3 {[%emt 0:00:30]} Nbd7 {[%emt 0:00:30]} 8. O-O {[%emt 0:00:30]} c5 {[%emt 0:00:30]} 9. c3 {[%emt 0:00:00]} b6 {[%emt 0:02:30]} 10. Re1 {[%emt 0:00:00]} Bb7 {[%emt 0:02:30]} 11. Ne5 {[%emt 0:02:30]} Nxe5 {[%emt 0:11:30]} 12. dxe5 {[%emt 0:00:00]} Ne4 {[%emt 0:01:30]} 13. f4 {[%emt 0:10:00]} Nxd2 {[%emt 0:08:30]} 14. Qxd2 {[%emt 0:00:30]} d4 {[%emt 0:00:00]} 15. Rad1 {[%emt 0:04:30]} Qd7 {[%emt 0:02:00]} 16. exd4 {[%emt 0:01:30]} cxd4 {[%emt 0:00:30]} 17. e6 {[%emt 0:03:30]} fxe6 {[%emt 0:12:30]} 18. Bxg6 {[%emt 0:01:30]} Qc6 {[%emt 0:01:30]} 19. Be4 {[%emt 0:07:30]} dxc3 {[%emt 0:00:30]} 20. bxc3 {[%emt 0:03:30]} Qc5+ {[%emt 0:06:30]} 21. Bf2 {[%emt 0:00:30]} Qc7 {[%emt 0:00:30]} 22. Bxb7 {[%emt 0:01:30]} Qxb7 {[%emt 0:00:30]} 23. Rxe6 {[%emt 0:01:30]} Rad8 {[%emt 0:00:30]} 24. Bd4 {[%emt 0:01:30]} Bf6 {[%emt 0:12:30]} 25. Qd3 {[%emt 0:05:30]} Rf7 {[%emt 0:01:30]} 26. Qc4 {[%emt 0:09:30]} b5 {[%emt 0:00:30]} 27. Qb3 {[%emt 0:04:30]} Qd5 {[%emt 0:05:30]} 28. Rd3 {[%emt 0:22:13]} Kf8 {[%emt 0:06:30]} 29. g3 {[%emt 0:06:18]} b4 {[%emt 0:06:22]} 30. Ree3 {[%emt 0:01:50]} Qxb3 {[%emt 0:05:48]} 31. axb3 {[%emt 0:00:13]} Bxd4 {[%emt 0:00:00]} 32. Rxd4 {[%emt 0:00:33]} Rxd4 {[%emt 0:00:16]} 33. cxd4 {[%emt 0:00:06]} Rf6 {[%emt 0:00:00]} 34. d5 {[%emt 0:00:48]} Ra6 {[%emt 0:00:30]} 35. Kf2 {[%emt 0:00:20]} Ra2+ {[%emt 0:00:34]} 36. Re2 {[%emt 0:00:32]} Ra3 {[%emt 0:00:07]} 37. Rb2 {[%emt 0:02:03]} Ra5 {[%emt 0:03:42]} 38. Rd2 {[%emt 0:00:08]} Ra3 {[%emt 0:01:38]} 39. Rb2 {[%emt 0:00:33]} Ra5 {[%emt 0:02:52]} 40. Rd2 {[%emt 0:00:28]} Ke8 {[%emt 0:02:48]} 41. Ke3 {[%emt 0:00:14]} Ra3 {[%emt 0:00:00]} 42. Rb2 {[%emt 0:00:39]} Kd7 {[%emt 0:00:00]} 43. Kd4 {[%emt 0:00:07]} 1/2-1/2

[Event "FIDE World Cadets U10 2022"]
[Site "Batumi"]
[Date "2022.09.16"]
[Round "1"]
[White "Emanouilov, Radoslav"]
[Black "Aeschbacher, Dimitri"]
[Result "1-0"]
[ECO "C56"]
[WhiteElo "1233"]
[BlackElo "1856"]
[Annotator "NA COMBH"]
[PlyCount "97"]
[EventDate "2022.09.16"]
[EventType "swiss"]
[EventCountry "GEO"]
[SourceTitle "playchess.com"]
[Source "ChessBase"]
[SourceQuality "1"]
[TimeControl "5400+30"]

1. e4 {[%emt 0:01:00]} e5 {[%emt 0:01:00]} 2. Nf3 {[%emt 0:00:30]} Nc6 {[%emt 0:00:30]} 3. d4 {[%emt 0:00:30]} exd4 {[%emt 0:00:00]} 4. Bc4 {[%emt 0:00:30]} Nf6 {[%emt 0:00:00]} 5. e5 {[%emt 0:00:30]} d5 {[%emt 0:00:30]} 6. Bb5 {[%emt 0:00:30]} Ne4 {[%emt 0:00:30]} 7. Nxd4 {[%emt 0:02:30]} Bc5 {[%emt 0:02:30]} 8. Nxc6 {[%emt 0:06:30]} Bxf2+ {[%emt 0:00:00]} 9. Kf1 {[%emt 0:00:00]} bxc6 {[%emt 0:00:00]} 10. Bxc6+ {[%emt 0:00:00]} Bd7 {[%emt 0:00:30]} 11. Qxd5 {[%emt 0:02:30]} Bxc6 {[%emt 0:01:30]} 12. Qxc6+ {[%emt 0:01:30]} Kf8 {[%emt 0:00:30]} 13. Qxe4 {[%emt 0:00:30]} Bb6 {[%emt 0:00:00]} 14. Ke2 {[%emt 0:00:30]} Rb8 {[%emt 0:01:00]} 15. Rf1 {[%emt 0:02:30]} Qd7 {[%emt 0:00:30]} 16. Nc3 {[%emt 0:01:30]} Re8 {[%emt 0:00:30]} 17. Bg5 {[%emt 0:02:30]} Bd4 {[%emt 0:01:30]} 18. Rad1 {[%emt 0:02:30]} Rxe5 {[%emt 0:00:30]} 19. Qxe5 {[%emt 0:00:30]} Qg4+ {[%emt 0:00:00]} 20. Ke1 {[%emt 0:00:30]} Qxd1+ {[%emt 0:00:00]} 21. Kxd1 {[%emt 0:00:30]} Bxe5 {[%emt 0:00:00]} 22. Bf4 {[%emt 0:00:30]} Bxf4 {[%emt 0:01:00]} 23. Rxf4 {[%emt 0:00:30]} Ke7 {[%emt 0:00:30]} 24. Re4+ {[%emt 0:00:30]} Kf6 {[%emt 0:00:30]} 25. Ke2 {[%emt 0:00:30]} Rb8 {[%emt 0:00:00]} 26. b3 {[%emt 0:00:30]} c6 {[%emt 0:00:00]} 27. Na4 {[%emt 0:01:30]} Rb5 {[%emt 0:00:30]} 28. Nb2 {[%emt 0:01:30]} Rh5 {[%emt 0:00:30]} 29. h3 {[%emt 0:00:30]} Rg5 {[%emt 0:00:30]} 30. Kf3 {[%emt 0:00:30]} Ra5 {[%emt 0:00:30]} 31. a4 {[%emt 0:00:30]} h5 {[%emt 0:00:00]} 32. Nc4 {[%emt 0:01:30]} Rc5 {[%emt 0:00:00]} 33. Rd4 {[%emt 0:00:30]} g5 {[%emt 0:00:30]} 34. g4 {[%emt 0:00:30]} hxg4+ {[%emt 0:00:30]} 35. hxg4 {[%emt 0:00:00]} a5 {[%emt 0:00:00]} 36. c3 {[%emt 0:01:00]} Ke6 {[%emt 0:00:00]} 37. Rd6+ {[%emt 0:01:30]} Ke7 {[%emt 0:00:30]} 38. Rd4 {[%emt 0:00:30]} f5 {[%emt 0:00:30]} 39. b4 {[%emt 0:00:30]} fxg4+ {[%emt 0:00:00]} 40. Kxg4 {[%emt 0:00:00]} axb4 {[%emt 0:00:00]} 41. cxb4 {[%emt 0:00:00]} Rd5 {[%emt 0:00:30]} 42. Rxd5 {[%emt 0:00:30]} cxd5 {[%emt 0:00:00]} 43. Nd2 {[%emt 0:00:30]} Kd6 {[%emt 0:00:00]} 44. Kxg5 {[%emt 0:00:30]} d4 {[%emt 0:00:30]} 45. Kf4 {[%emt 0:00:00]} d3 {[%emt 0:00:00]} 46. Ke4 {[%emt 0:00:00]} Kc6 {[%emt 0:00:00]} 47. Kxd3 {[%emt 0:00:00]} Kb6 {[%emt 0:00:30]} 48. Nc4+ {[%emt 0:00:00]} Kb7 {[%emt 0:00:00]} 49. b5 {[%emt 0:00:30]} 1-0